bitfinex/quotes_SOLUSD_20230702
["timestamp","ask_amount","ask_price","bid_price","bid_amount"]
[1688259434512,22.614,18.706,18.697,22.622]
[1688259434710,55.0,18.705,18.697,22.622]
[1688259435004,77.615,18.705,18.687,106.328]
[1688259435204,77.615,18.705,18.68,33.86]
[1688259435512,77.615,18.705,18.691,22.63]
[1688259435701,77.615,18.705,18.691,21.13]
[1688259436910,77.615,18.705,18.68,92.156]
[1688259436911,20.0,18.704,18.68,92.156]
[1688259437099,80.869,18.697,18.68,22.643]
[1688259437416,80.869,18.697,18.67,67.45]
[1688259437417,119.3597,18.696,18.678,22.646]
[1688259437717,80.895,18.691,18.678,22.646]
[1688259438104,55.0,18.69,18.678,22.646]
[1688259438403,22.636,18.687,18.678,22.646]
[1688259438603,55.0,18.686,18.678,22.646]
[1688259438797,22.639,18.685,18.678,22.646]
[1688259438991,106.96312152,18.696,18.678,22.646]
[1688259439190,22.632,18.691,18.678,22.646]
[1688259439414,22.632,18.691,18.678,22.146]
[1688259440504,55.0,18.69,18.678,22.146]
[1688259440810,22.636,18.687,18.678,22.146]
[1688259440995,22.64,18.684,18.678,22.146]
[1688259441395,22.64,18.684,18.66,16.98]
[1688259441396,55.0,18.683,18.67,22.656]
[1688259441703,55.0,18.683,18.661,58.354]
[1688259441704,80.943,18.68,18.661,58.354]
[1688259441913,80.943,18.68,18.666,22.66]
[1688259442105,55.0,18.679,18.655,58.354]
[1688259442418,164.72,18.681,18.666,187.451]
[1688259442419,22.644,18.681,18.666,187.451]
[1688259442619,22.644,18.68,18.666,187.451]
[1688259442794,22.644,18.68,18.667,19.5]
[1688259443101,22.644,18.68,18.67,22.655]
[1688259443299,77.646,18.679,18.67,22.655]
[1688259444011,135.946,18.679,18.668,22.658]
[1688259444199,135.946,18.679,18.665,22.662]
[1688259444400,135.946,18.679,18.66,58.357]
[1688259444794,135.946,18.679,18.658,106.493]
[1688259444998,135.946,18.679,18.664,22.663]
[1688259445910,143.54942152,18.679,18.662,22.665]
[1688259446219,7.60342152,18.678,18.661,22.667]
[1688259446408,80.972,18.673,18.658,22.67]
[1688259446717,22.658,18.669,18.662,22.665]
[1688259446911,22.656,18.671,18.662,22.665]
[1688259447115,22.651,18.675,18.662,22.665]
[1688259447714,129.049,18.675,18.662,22.665]
[1688259448421,22.651,18.675,18.662,22.665]
[1688259450100,80.964,18.675,18.662,22.665]
[1688259450323,55.0,18.674,18.662,22.665]
[1688259450514,22.656,18.671,18.662,22.665]
[1688259453020,22.659,18.668,18.66,22.668]
[1688259453206,22.659,18.668,18.658,22.67]
[1688259453521,55.0,18.667,18.651,58.387]
[1688259453712,55.0,18.667,18.647,106.555]
[1688259453713,22.666,18.663,18.648,58.396]
[1688259453921,22.666,18.663,18.647,106.555]
[1688259453922,22.666,18.663,18.652,22.677]
[1688259461923,58.319,18.674,18.653,20.0]
[1688259462124,98.4839,18.675,18.659,22.669]
[1688259462312,98.4839,18.675,18.659,129.159]
[1688259462620,22.652,18.674,18.659,22.669]
[1688259463508,62.60342152,18.673,18.657,22.671]
[1688259463712,80.99,18.669,18.658,22.67]
[1688259463916,55.0,18.668,18.658,22.67]
[1688259464223,58.313,18.676,18.658,22.67]
[1688259464521,27.34333596,18.68,18.658,22.67]
[1688259464522,22.654,18.673,18.658,22.67]
[1688259464716,22.654,18.673,18.659,10.83719922]
[1688259465020,22.654,18.673,18.663,81.014]
[1688259466022,58.306,18.678,18.663,81.014]
[1688259466327,20.07,18.7,18.669,187.42]
[1688259466534,22.634,18.689,18.67,72.07]
[1688259466821,106.24,18.703,18.68,17.07]
[1688259467023,22.625,18.697,18.685,22.637]
[1688259467228,80.871,18.697,18.681,33.47919922]
[1688259467422,80.871,18.697,18.677,58.306]
[1688259467629,92.534,18.696,18.679,10.83719922]
[1688259467946,22.629,18.693,18.681,22.642]
[1688259468616,22.627,18.694,18.686,22.637]
[1688259468934,321.7,18.718,18.686,22.637]
[1688259468935,58.209,18.709,18.687,20.0]
[1688259469104,58.209,18.709,18.693,22.628]
[1688259469105,22.616,18.704,18.693,22.628]
[1688259469309,22.616,18.704,18.687,10.83719922]
[1688259469531,22.616,18.704,18.668,3.0]
[1688259469532,30.21942152,18.704,18.67,72.07]
[1688259469731,30.21942152,18.704,18.691,22.63]
[1688259469908,22.621,18.699,18.689,22.632]
[1688259470105,22.621,18.699,18.687,22.634]
[1688259470320,30.22442152,18.699,18.684,22.639]
[1688259470530,7.60342152,18.698,18.684,22.639]
[1688259470712,80.881,18.694,18.684,22.639]
[1688259471024,80.881,18.694,18.684,22.638]
[1688259471025,22.627,18.694,18.684,22.638]
[1688259471324,58.223,18.704,18.684,22.638]
[1688259471525,22.618,18.702,18.692,22.629]
[1688259472331,22.616,18.704,18.692,22.629]
[1688259472719,93.1259,18.709,18.692,22.629]
[1688259472911,80.837,18.704,18.692,33.46619922]
[1688259473225,7.60342152,18.703,18.684,58.284]
[1688259473521,22.623,18.698,18.688,22.633]
[1688259473727,58.211,18.708,18.688,22.633]
[1688259473914,58.211,18.708,18.68,17.07]
[1688259473915,22.616,18.703,18.693,22.628]
[1688259475723,151.3329,18.709,18.693,22.628]
[1688259476032,22.615,18.705,18.693,22.628]
[1688259476215,93.1259,18.709,18.693,22.628]
[1688259476921,22.611,18.708,18.693,22.628]
[1688259477613,22.616,18.703,18.693,22.628]
[1688259478012,55.0,18.702,18.691,22.63]
[1688259478218,55.0,18.702,18.68,17.07]
[1688259478219,22.625,18.696,18.687,22.635]
[1688259480122,22.625,18.696,18.681,58.293]
[1688259480527,22.625,18.696,18.685,22.637]
[1688259480827,260.99761505,18.735,18.685,22.637]
[1688259480828,58.222,18.705,18.685,22.637]
[1688259481124,7.60342152,18.713,18.69,17.07]
[1688259481330,22.611,18.708,18.695,80.873]
[1688259481829,93.1259,18.715,18.695,91.71019922]
[1688259482015,58.183,18.717,18.701,80.848]
[1688259482216,80.795,18.714,18.701,22.618]
[1688259483025,22.608,18.71,18.701,22.618]
[1688259483413,92.6326,18.713,18.701,22.618]
[1688259483714,7.60342152,18.717,18.701,22.618]
[1688259484333,22.607,18.711,18.701,22.618]
[1688259484735,22.607,18.711,18.699,22.621]
[1688259484736,88.41142152,18.711,18.699,22.621]
[1688259484910,80.832,18.706,18.692,22.629]
[1688259485114,80.832,18.706,18.673,10.83719922]
[1688259485324,22.625,18.696,18.688,22.633]
[1688259485523,22.625,18.696,18.687,22.634]
[1688259489036,55.0,18.695,18.678,58.302]
[1688259489214,80.904,18.689,18.669,58.33]
[1688259489420,80.904,18.689,18.675,22.649]
[1688259489614,22.639,18.685,18.675,22.649]
[1688259490936,22.636,18.687,18.676,20.0]
[1688259491122,22.634,18.689,18.679,22.645]
[1688259492334,22.634,18.689,18.678,22.645]
[1688259492524,55.0,18.688,18.678,22.645]
[1688259492721,22.638,18.685,18.676,22.648]
[1688259493237,22.638,18.685,18.66,17.01]
[1688259493238,55.0,18.684,18.666,58.34]
[1688259493438,22.646,18.679,18.669,22.656]
[1688259493622,22.646,18.679,18.66,164.838]
[1688259494032,22.646,18.679,18.66,117.31619922]
[1688259494329,22.646,18.679,18.667,22.66]
[1688259495322,321.7,18.693,18.667,22.66]
[1688259495323,106.326,18.688,18.668,20.0]
[1688259495648,58.351,18.683,18.674,22.651]
[1688259495829,22.644,18.681,18.674,22.651]
[1688259496023,22.644,18.681,18.667,10.83719922]
[1688259496229,80.938,18.681,18.662,106.469]
[1688259496447,80.938,18.681,18.666,22.661]
[1688259497040,22.644,18.681,18.666,33.49819922]
[1688259497240,22.644,18.681,18.667,10.83719922]
[1688259497422,106.296,18.694,18.674,22.65]
[1688259497624,22.631,18.691,18.685,22.637]
[1688259497966,22.629,18.693,18.685,22.637]
[1688259498329,152.5617,18.697,18.685,33.47419922]
[1688259498330,116.9397,18.697,18.685,33.47419922]
[1688259498731,106.225,18.706,18.685,33.47419922]
[1688259499044,107.10082,18.706,18.686,85.83719922]
[1688259499342,22.614,18.705,18.69,58.263]
[1688259500845,22.614,18.705,18.692,22.63]
[1688259502839,98.135,18.709,18.692,22.63]
[1688259503148,98.135,18.709,18.692,33.46719922]
[1688259503325,98.135,18.709,18.693,10.83719922]
[1688259503525,98.135,18.709,18.697,80.865]
[1688259503526,22.611,18.708,18.697,80.865]
[1688259504145,22.611,18.708,18.697,22.622]
[1688259504445,22.611,18.708,18.697,22.623]
[1688259505233,7.60342152,18.715,18.697,22.623]
[1688259505434,22.605,18.713,18.697,22.623]
[1688259505835,30.20842152,18.713,18.697,22.623]
[1688259506035,52.81342152,18.713,18.697,22.623]
[1688259506241,7.60342152,18.712,18.697,22.623]
[1688259506433,22.611,18.708,18.697,22.623]
[1688259506943,22.615,18.704,18.697,22.623]
[1688259507151,22.615,18.704,18.68,17.07]
[1688259507448,22.622,18.699,18.688,22.634]
[1688259507828,22.626,18.695,18.688,22.634]
[1688259508247,22.626,18.695,18.686,22.636]
[1688259509448,164.509,18.699,18.686,22.636]
[1688259509449,58.246,18.699,18.686,22.636]
[1688259509638,22.623,18.697,18.686,22.636]
[1688259509836,98.2119,18.703,18.686,33.47319922]
[1688259510165,120.8289,18.703,18.691,80.89]
[1688259510334,22.617,18.703,18.691,80.89]
[1688259511046,22.617,18.703,18.691,22.63]
[1688259512050,55.0,18.702,18.691,22.63]
[1688259512245,22.621,18.699,18.691,22.63]
[1688259516352,22.621,18.699,18.685,58.281]
[1688259516537,22.621,18.699,18.691,22.63]
[1688259518553,22.62,18.701,18.691,22.63]
[1688259518766,22.615,18.704,18.691,33.46719922]
[1688259519055,22.604,18.714,18.7,80.853]
[1688259519254,256.5754,18.719,18.7,80.853]
[1688259519554,22.604,18.713,18.701,10.83719922]
[1688259519744,22.604,18.713,18.7,58.234]
[1688259520641,22.604,18.713,18.704,22.614]
[1688259520850,22.603,18.715,18.704,22.614]
[1688259523061,22.603,18.715,18.699,22.62]
[1688259523062,82.60342152,18.714,18.699,22.62]
[1688259523261,80.813,18.71,18.698,22.622]
[1688259523459,55.0,18.709,18.698,22.622]
[1688259523765,22.613,18.706,18.698,22.622]
[1688259523967,22.613,18.706,18.693,58.256]
[1688259524260,22.613,18.706,18.697,22.623]
[1688259526554,55.0,18.705,18.693,22.628]
[1688259526749,22.618,18.702,18.693,22.628]
[1688259526955,22.618,18.702,18.691,22.63]
[1688259527749,22.623,18.698,18.678,106.376]
[1688259527949,22.623,18.698,18.67,16.98]
[1688259527950,22.623,18.698,18.679,78.299]
[1688259528157,22.63,18.692,18.684,22.639]
[1688259531548,90.2115,18.697,18.684,22.639]
[1688259531865,22.626,18.695,18.684,22.639]
[1688259538658,22.625,18.697,18.684,22.639]
[1688259538862,157.9994,18.703,18.685,55.0]
[1688259539065,22.622,18.699,18.69,22.631]
[1688259539770,22.619,18.701,18.69,22.631]
[1688259539955,58.215,18.707,18.691,20.0]
[1688259539956,22.618,18.702,18.691,20.0]
[1688259540266,22.618,18.702,18.694,22.627]
[1688259542269,99.7724,18.709,18.694,80.88]
[1688259542655,22.611,18.708,18.694,80.88]
[1688259543369,22.611,18.708,18.698,80.86]
[1688259543577,22.611,18.708,18.699,20.0]
[1688259543871,22.611,18.708,18.701,22.618]
[1688259544474,22.611,18.708,18.68,17.07]
[1688259544765,22.611,18.708,18.69,80.895]
[1688259545069,22.618,18.702,18.69,22.631]
[1688259546078,22.618,18.702,18.694,22.627]
[1688259547874,22.618,18.702,18.686,22.627]
[1688259548057,22.618,18.702,18.683,106.349]
[1688259548058,55.0,18.701,18.687,20.0]
[1688259548378,55.0,18.701,18.683,106.349]
[1688259548379,22.624,18.697,18.689,22.632]
[1688259548575,22.624,18.697,18.69,20.0]
[1688259548778,22.624,18.697,18.69,42.632]
[1688259550974,22.622,18.699,18.69,42.632]
[1688259551276,92.9291,18.701,18.69,42.632]
[1688259551463,115.5481,18.701,18.69,42.632]
[1688259551857,115.5481,18.701,18.69,22.632]
[1688259551858,22.619,18.701,18.69,22.632]
[1688259552368,22.619,18.701,18.683,164.636]
[1688259552570,22.619,18.701,18.691,22.631]
[1688259552970,22.623,18.698,18.691,22.631]
[1688259554377,22.619,18.701,18.691,80.894]
[1688259554580,22.617,18.703,18.691,80.894]
[1688259555267,22.617,18.703,18.691,22.631]
[1688259555466,55.0,18.702,18.685,58.279]
[1688259555669,22.624,18.697,18.691,22.63]
[1688259555874,22.624,18.697,18.69,22.631]
[1688259556076,22.624,18.697,18.691,20.0]
[1688259556263,22.624,18.697,18.69,22.632]
[1688259556464,22.624,18.697,18.688,22.633]
[1688259556777,22.628,18.694,18.688,22.633]
[1688259561373,117.349,18.696,18.688,22.633]
[1688259563978,55.0,18.695,18.682,22.641]
[1688259564282,22.631,18.692,18.682,22.641]
[1688259566093,55.0,18.691,18.682,22.641]
[1688259566381,22.634,18.689,18.682,22.641]
[1688259567366,22.631,18.691,18.682,80.932]
[1688259568480,22.63,18.692,18.682,80.932]
[1688259569964,22.63,18.692,18.682,22.641]
[1688259571383,22.63,18.692,18.673,26.78000094]
[1688259571384,22.63,18.692,18.68,22.643]
[1688259571576,33.86,18.69,18.674,58.313]
[1688259571770,22.638,18.686,18.678,22.646]
[1688259572671,22.638,18.686,18.676,22.648]
[1688259573003,22.638,18.686,18.677,22.647]
[1688259573187,58.249,18.696,18.678,20.0]
[1688259573497,22.629,18.693,18.682,80.931]
[1688259577481,22.627,18.695,18.682,80.931]
[1688259578782,22.625,18.697,18.683,55.0]
[1688259579088,16.98,18.72,18.687,22.635]
[1688259579277,94.1082,18.709,18.69,16.99]
[1688259579593,22.611,18.708,18.695,80.873]
[1688259580573,7.60342152,18.717,18.695,80.873]
[1688259580574,7.60342152,18.717,18.695,91.71019922]
[1688259580774,22.604,18.713,18.706,22.612]
[1688259580981,22.604,18.713,18.702,22.616]
[1688259581185,22.604,18.713,18.696,69.08219922]
[1688259581186,22.604,18.713,18.7,22.619]
[1688259581391,22.604,18.713,18.701,20.0]
[1688259581893,22.604,18.713,18.697,20.0]
[1688259582286,22.604,18.713,18.702,22.617]
[1688259582481,22.603,18.715,18.702,80.846]
[1688259582682,99.5412,18.717,18.702,80.846]
[1688259583588,22.602,18.716,18.702,80.846]
[1688259583991,22.602,18.716,18.703,55.0]
[1688259584297,22.602,18.716,18.706,22.611]
[1688259586591,22.601,18.716,18.706,22.611]
[1688259593200,22.597,18.72,18.706,22.611]
[1688259593385,22.597,18.72,18.707,55.0]
[1688259593582,22.597,18.72,18.71,22.607]
[1688259593900,22.594,18.722,18.711,20.0]
[1688259594080,22.592,18.723,18.714,22.602]
[1688259596193,58.123,18.736,18.714,33.43919922]
[1688259596396,149.7549,18.739,18.721,80.763]
[1688259597178,22.577,18.736,18.721,22.594]
[1688259597595,55.0,18.735,18.721,22.594]
[1688259597798,22.583,18.731,18.715,78.186]
[1688259598095,22.583,18.731,18.721,22.594]
[1688259598605,22.583,18.731,18.72,22.595]
[1688259598895,22.583,18.731,18.687,3.0]
[1688259598896,22.583,18.731,18.718,22.597]
[1688259599799,17.06,18.73,18.711,22.606]
[1688259600105,186.867,18.725,18.712,22.605]
[1688259600290,186.867,18.725,18.706,22.583]
[1688259600291,80.749,18.725,18.706,22.583]
[1688259600493,80.749,18.725,18.69,17.06]
[1688259600494,16.94,18.72,18.69,22.632]
[1688259600690,16.94,18.72,18.68,17.13]
[1688259600691,17.06,18.71,18.68,17.13]
[1688259600997,58.189,18.715,18.69,97.958]
[1688259601196,22.606,18.712,18.69,97.958]
[1688259601502,55.0,18.711,18.69,97.958]
[1688259601689,22.614,18.705,18.69,80.898]
[1688259601894,22.614,18.705,18.691,20.0]
[1688259602199,22.614,18.705,18.693,22.627]
[1688259602406,22.606,18.712,18.698,187.123]
[1688259602604,16.97,18.73,18.699,20.0]
[1688259602605,164.362,18.715,18.699,20.0]
[1688259602784,164.362,18.715,18.695,58.25]
[1688259602785,22.608,18.71,18.695,58.25]
[1688259602992,22.608,18.71,18.699,22.62]
[1688259603917,58.18,18.718,18.7,20.0]
[1688259604218,22.605,18.713,18.705,22.613]
[1688259604804,26.74519016,18.733,18.705,80.832]
[1688259605005,22.581,18.733,18.706,75.0]
[1688259605207,17.06,18.75,18.72,17.06]
[1688259605511,22.567,18.744,18.729,80.73]
[1688259605799,22.567,18.744,18.721,75.0]
[1688259606007,22.567,18.744,18.707,3.0]
[1688259606008,22.567,18.744,18.727,22.586]
[1688259606207,22.567,18.744,18.725,22.589]
[1688259606501,22.567,18.744,18.723,22.591]
[1688259606907,80.695,18.737,18.723,22.591]
[1688259607093,22.581,18.733,18.723,22.591]
[1688259607406,22.581,18.733,18.714,58.097]
[1688259607585,22.581,18.733,18.71,123.257]
[1688259607586,22.587,18.728,18.712,58.196]
[1688259607784,22.587,18.728,18.717,22.599]
[1688259608198,43.22755035,18.74,18.717,22.599]
[1688259608199,22.58,18.733,18.717,22.599]
[1688259608388,22.577,18.736,18.723,80.754]
[1688259608785,22.577,18.736,18.72,17.06]
[1688259608996,80.731,18.729,18.717,22.599]
[1688259609397,22.585,18.729,18.717,22.599]
[1688259610002,22.585,18.729,18.716,164.35]
[1688259610003,58.127,18.735,18.723,22.592]
[1688259610396,22.583,18.731,18.723,22.592]
[1688259610705,22.583,18.731,18.721,22.594]
[1688259611791,22.583,18.731,18.719,22.596]
[1688259612211,22.583,18.731,18.713,58.194]
[1688259612212,22.583,18.731,18.713,22.603]
[1688259612392,186.874,18.724,18.711,22.606]
[1688259612598,22.596,18.72,18.71,22.607]
[1688259612814,22.596,18.72,18.706,58.214]
[1688259612815,22.596,18.72,18.709,22.608]
[1688259614701,58.156,18.726,18.71,20.0]
[1688259614901,22.596,18.72,18.713,22.603]
[1688259615205,22.596,18.72,18.705,58.218]
[1688259615415,22.596,18.72,18.702,106.24]
[1688259615416,22.596,18.72,18.706,22.613]
[1688259615606,22.596,18.72,18.693,106.293]
[1688259615607,39.636,18.72,18.693,106.293]
[1688259615807,97.809,18.72,18.693,106.293]
[1688259616111,22.606,18.712,18.701,22.618]
[1688259617009,106.13,18.723,18.701,22.618]
[1688259617206,106.13,18.723,18.702,20.0]
[1688259617403,58.164,18.723,18.708,22.61]
[1688259617604,93.7983,18.726,18.708,22.61]
[1688259617812,93.7983,18.726,18.709,75.0]
[1688259618022,22.594,18.722,18.714,22.603]
[1688259618310,106.038,18.739,18.714,22.603]
[1688259618512,22.581,18.733,18.72,80.766]
[1688259618692,22.581,18.733,18.718,106.148]
[1688259618693,22.581,18.733,18.724,22.59]
[1688259618896,22.581,18.733,18.714,106.038]
[1688259618897,22.581,18.733,18.721,22.594]
[1688259620999,55.0,18.732,18.721,22.594]
[1688259621304,22.585,18.73,18.721,22.594]
[1688259622818,55.0,18.732,18.721,22.594]
[1688259622819,77.582,18.732,18.721,22.594]
[1688259623019,22.582,18.732,18.721,22.594]
[1688259624005,55.0,18.731,18.721,22.594]
[1688259624202,22.586,18.728,18.721,22.594]
[1688259624901,55.0,18.736,18.721,22.594]
[1688259625105,58.122,18.737,18.721,22.594]
[1688259625315,94.1288,18.739,18.721,22.594]
[1688259625534,22.579,18.734,18.721,22.594]
[1688259626019,20.0,18.733,18.721,22.594]
[1688259626225,22.584,18.73,18.721,22.594]
[1688259627919,22.582,18.732,18.721,22.594]
[1688259628215,22.583,18.731,18.721,22.594]
[1688259628605,22.583,18.731,18.718,22.597]
[1688259628805,22.588,18.727,18.718,22.597]
[1688259629515,58.148,18.729,18.718,22.597]
[1688259629516,58.125,18.736,18.718,22.597]
[1688259629821,22.581,18.733,18.718,22.597]
[1688259630026,22.581,18.733,18.719,75.0]
[1688259630323,22.581,18.733,18.723,22.592]
[1688259631125,58.094,18.746,18.724,10.83719922]
[1688259631420,22.571,18.741,18.73,22.583]
[1688259632810,22.571,18.741,18.73,80.725]
[1688259633111,22.571,18.741,18.734,22.579]
[1688259633514,58.093,18.746,18.734,22.579]
[1688259634426,22.571,18.741,18.734,22.579]
[1688259636112,80.678,18.741,18.73,22.583]
[1688259636622,22.571,18.741,18.73,22.583]
[1688259637410,22.571,18.741,18.731,20.0]
[1688259637620,22.571,18.741,18.733,22.58]
[1688259637822,55.0,18.74,18.733,22.58]
[1688259638128,22.574,18.738,18.733,22.58]
[1688259639215,58.099,18.744,18.733,22.58]
[1688259639416,132.93069158,18.747,18.733,22.58]
[1688259639615,97.5135,18.749,18.733,22.58]
[1688259639914,113.57542152,18.751,18.733,22.58]
[1688259640117,94.0035,18.75,18.733,22.58]
[1688259640612,22.568,18.744,18.733,22.58]
[1688259641009,55.0,18.743,18.733,22.58]
[1688259641214,22.572,18.74,18.733,22.58]
[1688259645837,22.572,18.74,18.723,164.283]
[1688259646019,22.579,18.735,18.729,22.584]
[1688259646620,22.576,18.737,18.729,22.584]
[1688259647315,58.096,18.745,18.735,22.577]
[1688259647522,22.573,18.739,18.732,22.58]
[1688259648129,58.096,18.745,18.732,22.58]
[1688259648529,22.57,18.742,18.732,22.58]
[1688259650025,94.759,18.748,18.733,55.0]
[1688259650026,22.567,18.744,18.733,55.0]
[1688259650319,22.567,18.744,18.736,22.576]
[1688259656333,94.759,18.748,18.736,22.576]
[1688259657439,22.564,18.747,18.736,22.576]
[1688259657634,77.564,18.747,18.736,22.576]
[1688259658644,22.564,18.747,18.736,22.576]
[1688259659845,22.562,18.748,18.737,55.0]
[1688259660029,22.562,18.748,18.74,22.571]
[1688259661244,22.562,18.748,18.741,20.0]
[1688259661448,22.56,18.75,18.743,22.568]
[1688259661626,22.559,18.751,18.743,22.568]
[1688259664141,22.557,18.753,18.743,22.568]
[1688259664337,22.555,18.754,18.743,22.568]
[1688259664531,22.555,18.754,18.748,22.561]
[1688259664941,151.9266,18.759,18.748,22.561]
[1688259664942,93.8746,18.759,18.748,22.561]
[1688259665155,7.60342152,18.764,18.748,80.647]
[1688259665450,27.67308857,18.776,18.754,186.569]
[1688259665451,27.07823577,18.773,18.754,186.569]
[1688259665645,148.8183,18.774,18.754,186.569]
[1688259665646,90.8113,18.774,18.754,186.569]
[1688259665850,90.8113,18.774,18.755,75.0]
[1688259666049,113.3433,18.774,18.76,220.245]
[1688259666250,22.532,18.774,18.761,75.0]
[1688259666441,22.532,18.774,18.764,22.542]
[1688259666646,22.531,18.774,18.764,22.542]
[1688259666942,22.531,18.774,18.762,22.545]
[1688259667148,30.13442152,18.774,18.76,22.547]
[1688259667345,30.13442152,18.774,18.761,42.545]
[1688259667833,22.531,18.774,18.761,42.545]
[1688259668351,20.0,18.773,18.759,22.548]
[1688259668652,22.537,18.769,18.759,22.548]
[1688259670134,22.533,18.772,18.759,128.47]
[1688259670337,22.533,18.772,18.763,80.582]
[1688259670538,98.4585,18.777,18.763,80.582]
[1688259670539,22.532,18.774,18.766,22.54]
[1688259671353,57.981,18.782,18.766,80.57]
[1688259671649,22.527,18.778,18.77,22.535]
[1688259673442,22.527,18.778,18.768,22.537]
[1688259673963,80.52,18.778,18.766,22.539]
[1688259674158,88.12342152,18.778,18.759,10.83719922]
[1688259674464,186.448,18.767,18.751,22.558]
[1688259674652,20.0,18.777,18.743,110.25129756]
[1688259674653,22.545,18.762,18.743,106.01]
[1688259674856,22.545,18.762,18.748,22.561]
[1688259676050,22.545,18.762,18.752,22.556]
[1688259676235,22.545,18.762,18.749,20.0]
[1688259676440,22.553,18.756,18.748,22.561]
[1688259676639,22.553,18.756,18.749,42.56]
[1688259676949,22.553,18.756,18.734,106.061]
[1688259677256,22.553,18.756,18.737,22.574]
[1688259677257,80.644,18.749,18.737,22.574]
[1688259677437,80.644,18.749,18.738,42.573]
[1688259677637,22.566,18.745,18.738,42.573]
[1688259678344,22.566,18.745,18.738,22.573]
[1688259680962,22.566,18.745,18.736,22.575]
[1688259682057,22.57,18.742,18.731,68.97519922]
[1688259682240,22.57,18.742,18.732,20.0]
[1688259682645,22.568,18.743,18.735,22.577]
[1688259682864,58.08,18.75,18.735,22.577]
[1688259683165,55.0,18.749,18.735,22.577]
[1688259683354,22.567,18.744,18.735,22.577]
[1688259683947,58.091,18.752,18.735,80.703]
[1688259684148,22.559,18.751,18.736,75.0]
[1688259684348,22.559,18.751,18.74,22.571]
[1688259684547,22.559,18.751,18.741,20.0]
[1688259684848,22.559,18.751,18.743,22.567]